bitfinex/quotes_SOLUSD_20241116
["timestamp","ask_amount","ask_price","bid_price","bid_amount"]
[1731762804552,1.3563,221.18,221.13,27.11149154]
[1731762804724,0.1,221.16,221.13,27.11149154]
[1731762805537,1.4563,221.18,221.13,27.11149154]
[1731762806137,20.1,221.24,221.13,27.11149154]
[1731762806138,0.1,221.16,221.13,27.11149154]
[1731762807546,1.4565,221.16,221.13,27.11149154]
[1731762808135,1.3565,221.16,221.13,27.11149154]
[1731762808356,1.3565,221.16,221.12,13.58]
[1731762808554,1.4565,221.16,221.12,13.58]
[1731762809362,1.4565,221.16,221.13,27.11149154]
[1731762809552,0.1,221.15,221.13,27.11149154]
[1731762810066,1.3565,221.16,221.13,27.11149154]
[1731762810266,0.1,221.15,221.13,27.11149154]
[1731762811446,0.1,221.15,221.12,13.58]
[1731762811648,1.4564,221.17,221.12,13.58]
[1731762811848,1.3565,221.15,221.12,13.58]
[1731762812140,1.4565,221.15,221.12,13.58]
[1731762812363,1.3565,221.15,221.12,13.58]
[1731762812861,0.1,221.14,221.12,13.58]
[1731762813063,1.4566,221.14,221.09,27.11149154]
[1731762813761,0.1,221.12,221.09,27.11149154]
[1731762814463,0.1,221.12,221.1,13.53149154]
[1731762815160,0.1,221.12,221.09,27.11149154]
[1731762815853,1.4567,221.12,221.07,27.11149154]
[1731762816172,1.4567,221.12,221.08,13.53149154]
[1731762816362,1.4567,221.12,221.08,13.58]
[1731762817257,0.1,221.1,221.07,13.53149154]
[1731762818076,1.3568,221.1,221.07,13.53149154]
[1731762818466,1.4568,221.1,221.07,13.53149154]
[1731762818771,1.4568,221.1,221.07,14.4356455]
[1731762818974,1.4568,221.1,221.05,13.53149154]
[1731762819174,0.1,221.08,221.01,13.53149154]
[1731762819486,0.1,221.08,221.03,13.53149154]
[1731762819970,1.4571,221.06,221.03,13.53149154]
[1731762820179,1.3571,221.06,221.03,13.53149154]
[1731762820481,0.1,221.04,220.94,0.90442286]
[1731762820657,0.1,220.99,220.95,13.53149154]
[1731762821184,0.1,220.99,220.97,13.53149154]
[1731762821474,0.1,220.99,220.89,0.90463967]
[1731762821674,0.1,220.99,220.94,13.53149154]
[1731762822047,1.3575,220.98,220.94,13.53149154]
[1731762822450,1.3575,220.98,220.91,0.90474393]
[1731762822451,0.1,220.96,220.91,0.90474393]
[1731762822661,0.1,220.96,220.92,13.53149154]
[1731762822978,0.1,220.96,220.93,0.90478946]
[1731762823686,1.4575,220.98,220.93,0.90478946]
[1731762823994,0.1,220.96,220.92,13.53149154]
[1731762824176,0.1,220.96,220.92,14.4362527]
[1731762826898,0.1,220.95,220.93,13.58]
[1731762827100,1.4576,220.97,220.93,13.58]
[1731762827587,1.4576,220.97,220.9,13.53149154]
[1731762827588,0.1,220.95,220.9,13.58]
[1731762827783,1.4576,220.97,220.83,11.3207]
[1731762827784,0.1,220.91,220.86,13.53149154]
[1731762827983,0.1,220.91,220.77,83.53149154]
[1731762827984,0.1,220.91,220.84,13.53149154]
[1731762828202,0.1,220.88,220.82,13.53149154]
[1731762828391,0.1,220.88,220.83,0.90510188]
[1731762828598,0.1,220.91,220.86,13.67367462]
[1731762828796,0.1,220.91,220.78,85.8527]
[1731762828797,0.1,220.96,220.9,13.67367462]
[1731762828994,0.1,220.96,220.92,13.58]
[1731762829501,0.1,220.96,220.59,13.99911487]
[1731762829502,0.1,220.9,220.85,13.53149154]
[1731762829809,0.1,220.9,220.86,13.58]
[1731762830689,0.1,220.88,220.86,13.58]
[1731762830867,0.1,220.88,220.87,13.58]
[1731762831291,1.4581,220.9,220.87,13.58]
[1731762831475,0.1,220.88,220.84,13.58]
[1731762832497,0.1,220.88,220.84,14.48514937]
[1731762832703,1.4582,220.88,220.84,14.48514937]
[1731762832909,1.4582,220.88,220.84,13.58]
[1731762833208,1.4582,220.88,220.82,14.48516663]
[1731762833708,1.3581,220.89,220.84,13.58]
[1731762833909,0.1,220.87,220.84,13.58]
[1731762834096,1.4581,220.89,220.86,13.58]
[1731762834877,0.1,220.91,220.88,27.11149154]
[1731762835104,1.4578,220.95,220.91,13.58]
[1731762835405,1.4578,220.95,220.92,28.01630489]
[1731762836012,1.4578,220.95,220.92,14.48481335]
[1731762836387,1.4578,220.95,220.92,0.90481335]
[1731762836604,0.1,220.96,220.92,14.43630489]
[1731762836808,0.1,220.95,220.92,13.58]
[1731762837102,0.1,220.93,220.84,0.12549]
[1731762837279,0.1,220.89,220.85,13.53149154]
[1731762837479,0.1,220.91,220.85,13.53149154]
[1731762837686,0.1,220.91,220.86,0.90505074]
[1731762837879,0.1,220.91,220.86,14.48505074]
[1731762838303,0.1,220.94,220.89,13.58]
[1731762838710,0.1,220.9,220.86,13.53149154]
[1731762838998,0.1,220.9,220.87,13.58]
[1731762840199,1.458,220.9,220.87,13.58]
[1731762841222,1.358,220.9,220.87,13.58]
[1731762842309,1.358,220.9,220.87,14.48504035]
[1731762842516,1.358,220.9,220.88,13.53149154]
[1731762843820,1.458,220.9,220.88,13.53149154]
[1731762844126,1.358,220.9,220.88,13.53149154]
[1731762844305,1.458,220.9,220.88,13.53149154]
[1731762845115,1.358,220.9,220.88,13.53149154]
[1731762845518,1.458,220.9,220.88,13.53149154]
[1731762845720,1.4579,220.92,220.88,13.53149154]
[1731762846129,0.1,220.9,220.89,13.53149154]
[1731762847608,0.1,220.92,220.88,13.53149154]
[1731762847812,0.1,220.9,220.83,0.90504302]
[1731762848115,0.1,220.87,220.82,13.58]
[1731762848522,0.1,220.86,220.8,13.53149154]
[1731762848725,0.1,220.82,220.66,106.19049154]
[1731762848912,0.1,220.81,220.76,13.53149154]
[1731762849128,0.1,220.81,220.76,27.11149154]
[1731762849736,0.1,220.81,220.76,13.58]
[1731762849737,1.4586,220.81,220.76,13.58]
[1731762849939,0.1,220.85,220.8,13.53149154]
[1731762850126,0.1,220.85,220.8,27.11149154]
[1731762850915,0.1,220.85,220.81,27.11149154]
[1731762853141,0.1,220.82,220.78,27.11149154]
[1731762853733,0.1,220.81,220.78,13.58]
[1731762854122,1.4585,220.83,220.78,27.11149154]
[1731762854523,1.4584,220.85,220.79,27.11149154]
[1731762854737,0.1,220.83,220.8,13.53149154]
[1731762854939,0.1,220.83,220.79,13.58]
[1731762854940,0.1,220.83,220.79,27.11149154]
[1731762855242,0.1,220.82,220.79,27.11149154]
[1731762855439,0.1,220.82,220.79,13.58]
[1731762856026,0.1,220.82,220.79,27.11149154]
[1731762856623,0.1,220.82,220.79,13.58]
[1731762857019,0.1,220.82,220.79,27.11149154]
[1731762857338,0.1,220.82,220.8,13.53149154]
[1731762857644,0.1,220.82,220.79,13.58]
[1731762858040,1.4584,220.84,220.79,13.58]
[1731762858957,0.1,220.84,220.81,13.58]
[1731762859122,0.1,220.9,220.83,27.11149154]
[1731762859325,0.1,220.88,220.85,27.11149154]
[1731762859745,0.1,220.87,220.84,0.90512668]
[1731762859932,0.1,220.83,220.8,13.58]
[1731762860129,0.1,220.83,220.76,13.53149154]
[1731762860520,0.1,220.83,220.75,0.25098]
[1731762860725,1.3585,220.82,220.74,18.06149154]
[1731762860920,1.3585,220.82,220.75,13.58]
[1731762861844,1.3585,220.82,220.77,13.58]
[1731762862057,0.1,220.81,220.77,13.58]
[1731762863147,0.1,220.81,220.76,13.58]
[1731762863329,0.1,220.81,220.76,27.11149154]
[1731762863942,0.1,220.83,220.78,13.58]
[1731762864146,0.1,220.83,220.79,27.11149154]
[1731762864429,0.1,220.83,220.77,27.11149154]
[1731762864430,0.1,220.81,220.77,27.11149154]
[1731762864749,0.1,220.81,220.77,13.58]
[1731762864951,0.1,220.8,220.77,13.58]
[1731762865323,0.1,220.81,220.77,13.58]
[1731762865731,0.1,220.81,220.77,13.53149154]
[1731762866231,1.3585,220.82,220.77,13.53149154]
[1731762866540,1.3585,220.82,220.74,4.5301]
[1731762866541,0.1,220.8,220.76,27.11149154]
[1731762867128,1.3585,220.82,220.76,27.11149154]
[1731762867340,0.1,220.8,220.76,27.11149154]
[1731762868463,1.3585,220.82,220.76,27.11149154]
[1731762868640,0.1,220.8,220.76,27.11149154]
[1731762869241,0.1,220.81,220.76,27.11149154]
[1731762869764,0.1,220.8,220.76,27.11149154]
[1731762870060,0.1,220.8,220.78,13.53149154]
[1731762870635,1.3585,220.82,220.78,13.53149154]
[1731762870835,0.1,220.81,220.78,13.53149154]
[1731762872038,0.1,220.81,220.79,13.58]
[1731762872435,0.1,220.83,220.79,13.58]
[1731762872656,0.1,220.83,220.8,0.90534602]
[1731762872862,0.1,220.83,220.79,13.58]
[1731762873033,0.1,220.83,220.79,14.48539477]
[1731762873456,0.1,220.81,220.79,13.58]
[1731762874764,1.3586,220.82,220.79,13.58]
[1731762874976,0.1,220.81,220.79,13.58]
[1731762875569,1.4584,220.84,220.8,27.11149154]
[1731762875745,0.1,220.84,220.82,13.58]
[1731762876490,0.1,220.86,220.82,28.01675214]
[1731762876976,0.1,220.84,220.82,13.58]
[1731762877947,1.4583,220.86,220.82,13.58]
[1731762878152,1.4584,220.84,220.81,13.58]
[1731762878447,0.1,220.81,220.79,13.58]
[1731762881249,0.1,220.81,220.78,13.58]
[1731762881871,0.1,220.81,220.78,27.11149154]
[1731762886552,0.1,220.81,220.78,13.58]
[1731762890283,0.2,220.81,220.77,13.58]
[1731762890581,1.5586,220.81,220.75,13.58]
[1731762891283,0.1,220.76,220.74,10.71746259]
[1731762892086,0.1,220.75,220.74,10.71746259]
[1731762892466,1.459,220.75,220.74,10.71746259]
[1731762894459,51.459,220.75,220.74,10.71746259]
[1731762898189,21.459,220.75,220.74,10.71746259]
[1731762898529,3.3969,220.79,220.74,10.71746259]
[1731762898530,0.1,220.79,220.74,37.8421323]
[1731762898708,0.1,220.79,220.75,27.12466971]
[1731762899028,1.4587,220.79,220.75,13.58]
[1731762899706,0.1,220.77,220.75,13.58]
[1731762900214,0.1,220.76,220.74,10.71746259]
[1731762900412,0.1,220.75,220.74,10.71746259]
[1731762900723,1.4589,220.76,220.74,10.71746259]
[1731762901110,0.1,220.76,220.74,10.71746259]
[1731762902259,0.1,220.75,220.74,10.71746259]
[1731762904517,1.4589,220.76,220.74,10.71746259]
[1731762904928,0.1,220.75,220.74,10.71746259]
[1731762907933,1.00668264,220.75,220.74,10.71746259]
[1731762908923,0.1,220.75,220.74,10.71746259]
[1731762909531,0.1,220.75,220.61,27.12466971]
[1731762909749,20.1,220.77,220.5,70.09367462]
[1731762909750,0.1,220.62,220.56,13.58]
[1731762910032,0.2,220.59,220.54,13.58]
[1731762910215,0.2,220.56,220.5,13.63834433]
[1731762910409,0.2,220.56,220.5,0.09367462]
[1731762910632,0.2,220.56,220.5,13.63834433]
[1731762911132,0.1,220.58,220.53,27.12466971]
[1731762911330,0.2,220.58,220.53,27.12466971]
[1731762911532,0.2,220.58,220.53,13.58]
[1731762911935,0.2,220.58,220.53,27.12466971]
[1731762912135,0.1,220.57,220.51,31.65946971]
[1731762912539,0.1,220.54,220.51,13.58]
[1731762912731,0.2,220.52,220.5,0.09367462]
[1731762913544,0.1,220.54,220.5,13.63834433]
[1731762913745,0.2,220.54,220.5,0.09367462]
[1731762913919,0.2,220.51,220.5,0.09367462]
[1731762915721,1.5604,220.51,220.5,0.09367462]
[1731762916643,0.2,220.51,220.5,0.09367462]
[1731762917724,0.1,220.58,220.5,49.00400833]
[1731762917924,0.1,220.62,220.57,13.54466971]
[1731762918239,0.1,220.62,220.59,13.54466971]
[1731762919035,1.4595,220.66,220.5,39.99433862]
[1731762919036,0.2,220.61,220.58,13.54466971]
[1731762919241,0.2,220.61,220.57,13.54466971]
[1731762919626,0.2,220.61,220.56,13.54466971]
[1731762920023,0.1,220.61,220.57,13.54466971]
[1731762920228,0.1,220.61,220.58,13.54466971]
[1731762921123,0.1,220.61,220.56,4.5338]
[1731762921341,0.2,220.63,220.58,13.54466971]
[1731762921924,0.2,220.75,220.58,13.54466971]
[1731762921925,0.1,220.65,220.61,13.54466971]
[1731762922125,0.1,220.65,220.62,13.54466971]
[1731762923139,0.2,220.65,220.62,13.54466971]
[1731762923551,0.2,220.65,220.62,18.07726971]
[1731762923733,0.1,220.68,220.63,23.776884]
[1731762923942,0.2,220.68,220.63,37.32155371]
[1731762924148,0.1,220.7,220.67,13.54466971]
[1731762924333,0.1,220.72,220.68,13.54466971]
[1731762924646,0.1,220.74,220.7,13.54466971]
[1731762925048,0.2,220.76,220.72,13.54466971]
[1731762925241,0.2,220.76,220.71,23.776884]
[1731762925242,0.1,220.76,220.74,13.54466971]
[1731762926948,1.3586,220.82,220.66,13.54466971]
[1731762926949,0.2,220.73,220.69,13.54466971]
[1731762927130,0.2,220.75,220.68,13.54466971]
[1731762927334,0.2,220.75,220.71,23.776884]
[1731762927633,0.1,220.79,220.74,13.54466971]
[1731762927838,0.1,220.81,220.78,13.54466971]
[1731762928049,0.1,220.85,220.71,23.776884]
[1731762928050,0.1,220.84,220.8,13.54466971]
[1731762928233,0.1,220.84,220.81,13.54466971]
[1731762928640,0.1,220.83,220.8,13.54466971]
[1731762929040,0.1,220.82,220.8,13.54466971]
[1731762929554,0.1,220.81,220.78,0.90542557]
[1731762929860,0.2,220.78,220.76,13.58]
[1731762930467,0.1,220.78,220.76,13.58]
[1731762930664,0.1,220.77,220.74,24.86976971]
[1731762930845,0.1,220.77,220.74,38.44976971]
[1731762930846,0.1,220.76,220.74,38.44976971]
[1731762931244,0.1,220.76,220.74,27.12466971]
[1731762931453,0.1,220.75,220.71,13.54466971]
[1731762931656,0.1,220.75,220.72,13.54466971]
[1731762931969,0.1,220.75,220.72,27.12466971]
[1731762932853,0.1,220.75,220.72,35.24187101]
[1731762933052,0.1,220.75,220.72,13.58]
[1731762933546,0.1,220.78,220.74,13.58]
[1731762934072,0.1,220.78,220.75,0.90558276]
[1731762935475,0.1,220.77,220.74,13.58]
[1731762938059,0.1,220.78,220.75,35.24187101]
[1731762938253,0.2,220.83,220.78,0.09367462]
[1731762938640,4.50118264,220.95,220.78,0.09367462]
[1731762938641,0.1,220.81,220.78,0.09367462]
[1731762938853,0.1,220.8,220.78,0.09367462]
[1731762939252,0.1,220.77,220.75,13.58]
[1731762939569,0.1,220.76,220.75,13.58]
[1731762940367,0.1,220.76,220.74,0.09367462]
[1731762941871,0.1,220.74,220.72,13.58]
[1731762943772,0.1,220.74,220.71,13.58]
[1731762947765,21.00668264,220.86,220.65,11.3297]
[1731762947766,0.2,220.7,220.65,11.3297]
[1731762948076,0.1,220.7,220.66,21.66187101]
[1731762948511,0.2,220.7,220.67,0.09367462]
[1731762949801,0.1,220.66,220.64,13.58]
[1731762950386,0.1,220.63,220.6,11.3324]
[1731762950689,0.1,220.59,220.56,37.53047101]
[1731762950881,0.1,220.59,220.57,13.58]
[1731762951497,0.1,220.58,220.56,32.99657101]
[1731762951806,0.1,220.58,220.56,46.57657101]
[1731762951978,0.1,220.59,220.56,46.57657101]
[1731762951979,0.1,220.59,220.56,32.99657101]
[1731762952789,0.1,220.59,220.56,24.89341673]
[1731762953403,0.1,220.57,220.54,13.55871673]
[1731762953589,0.1,220.57,220.55,0.09367462]
[1731762953994,0.1,220.59,220.55,0.09367462]
[1731762954309,0.1,220.55,220.53,27.13871673]
[1731762954691,0.1,220.55,220.54,24.12153862]
[1731762956521,0.1,220.57,220.54,37.68025535]
[1731762956690,0.1,220.56,220.54,37.68025535]
[1731762956886,0.2,220.53,220.49,0.517778]
[1731762957103,0.2,220.53,220.49,14.07649473]
[1731762957309,0.2,220.53,220.5,13.65239135]
[1731762957614,0.1,220.54,220.53,0.09367462]
[1731762957818,0.1,220.56,220.53,0.09367462]
[1731762957989,0.1,220.58,220.55,13.65239135]
[1731762958189,0.1,220.57,220.55,13.65239135]
[1731762958612,0.1,220.56,220.55,13.65239135]
[1731762959022,0.1,220.56,220.55,37.42927535]
[1731762959212,0.1,220.57,220.55,37.42927535]
[1731762959430,0.1,220.56,220.55,37.42927535]
[1731762959837,0.1,220.56,220.53,4.5344]
[1731762959838,0.1,220.56,220.53,13.55871673]
[1731762960044,0.1,220.53,220.5,11.43147462]
[1731762960215,0.2,220.51,220.5,0.09367462]
[1731762961441,0.2,220.53,220.5,13.65239135]
[1731762961620,0.1,220.55,220.52,13.55871673]
[1731762961810,0.2,220.55,220.53,13.55871673]
[1731762962221,0.1,220.53,220.52,13.65239135]
[1731762962442,0.1,220.53,220.52,37.42927535]
[1731762962643,1.36,220.58,220.5,15.96647462]
[1731762962644,0.2,220.51,220.5,0.09367462]
[1731762963415,0.1,220.52,220.5,0.09367462]
[1731762963921,3.3994,220.63,220.5,0.09367462]
[1731762963922,0.2,220.57,220.52,23.99604862]
[1731762964115,0.1,220.55,220.53,13.55871673]
[1731762964338,0.1,220.54,220.53,13.55871673]
[1731762964617,0.1,220.55,220.53,13.55871673]
[1731762964618,0.1,220.55,220.53,37.33560073]
[1731762964819,0.1,220.57,220.53,37.33560073]
[1731762964820,0.2,220.57,220.53,37.33560073]
[1731762965036,0.1,220.55,220.53,37.33560073]
[1731762965341,0.1,220.54,220.51,24.027864]
[1731762965636,0.90668264,220.66,220.5,29.52529135]
[1731762965637,0.2,220.51,220.5,0.09367462]
[1731762967133,1.5604,220.51,220.5,0.09367462]
[1731762968448,0.2,220.51,220.5,0.09367462]
[1731762970444,0.2,220.51,220.5,13.65239135]
[1731762970629,0.2,220.51,220.5,0.09367462]
[1731762976362,0.2,220.53,220.5,0.09367462]
[1731762976534,0.2,220.53,220.5,27.23239135]
[1731762976862,0.2,220.55,220.52,51.00927535]
[1731762977029,0.1,220.53,220.52,37.45055862]
[1731762977551,0.1,220.53,220.52,66.88077535]
[1731762977749,0.2,220.53,220.52,66.88077535]
[1731762978767,0.2,220.53,220.52,24.89551673]
[1731762979054,0.2,220.51,220.5,4.62867462]
[1731762979564,0.1,220.53,220.52,37.45055862]
[1731762979859,0.1,220.55,220.52,51.00927535]
[1731762980151,0.2,220.53,220.52,37.45055862]
[1731762980743,0.2,220.53,220.52,41.98525862]
[1731762981346,0.2,220.51,220.5,0.09367462]
[1731762982141,0.2,220.53,220.51,4.5349]
[1731762985952,0.1,220.6,220.59,162.2]
[1731762986151,0.1,220.62,220.58,13.67367462]
[1731762986349,0.1,220.62,220.6,13.55871673]
[1731762986766,0.1,220.62,220.59,13.55871673]
[1731762986967,0.1,220.62,220.6,13.58]
[1731762988771,0.1,220.65,220.61,27.13871673]
[1731762988972,0.1,220.67,220.63,27.13871673]
[1731762989297,0.1,220.65,220.63,27.13871673]
[1731762989698,0.1,220.65,220.63,31.67091673]
[1731762989869,0.1,220.65,220.64,23.87055862]
[1731762990065,0.1,220.65,220.64,37.45055862]
[1731762990287,0.1,220.67,220.64,37.45055862]
[1731762990492,0.1,220.67,220.65,27.13871673]
[1731762990994,0.1,220.64,220.62,13.58]
[1731762991979,0.1,220.62,220.61,13.55871673]
[1731762992199,0.1,220.62,220.61,18.24871673]
[1731762992492,0.1,220.65,220.61,31.82871673]
[1731762992691,0.1,220.67,220.64,27.13871673]
[1731762992994,0.1,220.67,220.66,13.55871673]
[1731762993984,0.1,220.69,220.66,31.67041673]
[1731762994166,0.1,220.69,220.67,13.55871673]
[1731762994895,0.1,220.66,220.64,29.42111673]
[1731762995203,0.1,220.67,220.65,51.00927535]
[1731762995403,0.1,220.67,220.66,27.13871673]
[1731762995995,0.1,220.67,220.66,31.67051673]
[1731762996412,0.1,220.69,220.66,31.67051673]
[1731762996717,0.1,220.71,220.68,27.13871673]
[1731762996922,0.1,220.69,220.68,13.58]
[1731762997899,0.1,220.69,220.68,4.5314]
[1731762998319,0.1,220.69,220.68,18.09011673]
[1731762998501,0.1,220.71,220.68,18.09011673]
[1731762998703,0.1,220.71,220.69,13.55871673]
[1731762998904,0.1,220.69,220.67,13.55871673]
[1731763000497,0.1,220.69,220.66,15.8614]
[1731763000693,0.1,220.65,220.64,18.09081673]
[1731763000916,0.1,220.63,220.61,11.332]
[1731763001309,0.1,220.63,220.62,4.5325]
[1731763002299,0.1,220.63,220.61,15.8648]
[1731763004224,0.1,220.6,220.59,4.5332]
[1731763004899,0.1,220.64,220.6,0.09367462]
[1731763005222,0.1,220.7,220.63,27.48337135]
[1731763005420,0.1,220.7,220.67,13.55871673]
[1731763005620,0.1,220.66,220.63,13.55871673]
[1731763005918,0.1,220.76,220.61,53.20060073]
[1731763005919,0.1,220.64,220.61,53.20060073]
[1731763006121,0.1,220.64,220.63,13.55871673]
[1731763006911,0.1,220.64,220.63,31.67111673]
[1731763007412,0.1,220.66,220.63,43.00221673]
[1731763008029,0.1,220.68,220.66,0.09367462]
[1731763008202,0.1,220.68,220.67,13.58]
[1731763009112,0.1,220.68,220.65,13.55871673]
[1731763009411,1.00668264,220.79,220.65,13.58]
[1731763009412,0.1,220.66,220.65,13.58]
[1731763011433,0.1,220.66,220.65,13.67367462]
[1731763011610,0.1,220.66,220.65,27.23239135]
[1731763012544,0.1,220.66,220.65,13.67367462]
[1731763012833,0.1,220.66,220.64,13.58]
[1731763013333,0.1,220.64,220.63,11.3311]
[1731763013829,0.1,220.66,220.64,0.09367462]
[1731763014002,0.1,220.68,220.65,27.13871673]
[1731763014201,0.1,220.68,220.66,13.55871673]
[1731763014406,0.1,220.68,220.65,27.13871673]
[1731763014605,0.1,220.66,220.65,13.67367462]
[1731763015228,0.1,220.66,220.65,18.20567462]
[1731763016332,0.1,220.66,220.64,18.1122]
[1731763017108,0.1,220.66,220.63,11.3311]
[1731763017315,0.1,220.66,190.0,107.73473108]
[1731763017316,0.1,220.6,220.58,24.9134]
[1731763017544,0.1,220.6,220.58,11.3334]
[1731763018035,0.1,220.63,220.59,13.65239135]
[1731763018227,0.1,220.63,220.61,13.55871673]
[1731763018418,0.1,220.63,220.6,31.76519135]
[1731763019132,0.1,220.63,220.6,18.20647462]
[1731763019438,0.1,220.63,220.61,13.55871673]
[1731763020629,0.1,220.63,220.62,23.87055862]
[1731763021836,1.3594,220.68,220.62,23.87055862]
[1731763021837,1.3594,220.68,220.67,162.2]
[1731763022133,1.3594,220.68,220.55,24.89351673]
[1731763022333,1.3594,220.68,220.56,29.42721673]
[1731763022539,1.3594,220.68,220.57,0.09367462]
[1731763022718,1.3594,220.68,220.59,13.65239135]
[1731763023120,0.90668264,220.72,220.62,0.09367462]
[1731763023121,1.3593,220.7,220.62,0.09367462]
[1731763023310,1.3593,220.7,220.62,23.87055862]
[1731763024222,1.3591,220.72,220.61,0.09367462]
[1731763024427,1.4591,220.72,220.59,37.46109073]
[1731763024622,1.3591,220.72,220.62,0.09367462]
[1731763025736,1.3591,220.72,220.64,37.42927535]
[1731763025962,1.00668264,220.71,220.52,0.12549]
[1731763026164,1.00668264,220.71,220.57,13.55871673]
[1731763026343,1.00668264,220.71,220.58,0.09367462]
[1731763026555,1.00668264,220.71,220.52,15.99699]
[1731763026556,0.1,220.7,220.52,15.99699]
[1731763026798,0.1,220.68,220.55,13.55871673]
[1731763026952,0.1,220.68,220.56,13.55871673]
[1731763027461,0.1,220.68,220.57,23.776884]
[1731763027659,1.3594,220.67,220.58,0.09367462]
[1731763027846,1.3594,220.67,220.57,28.310584]
[1731763029173,1.3594,220.67,220.58,0.09367462]
[1731763030164,1.3594,220.67,220.56,13.55871673]
[1731763030353,1.3594,220.67,220.57,13.65239135]
[1731763030552,1.3592,220.71,220.61,13.65239135]
[1731763030743,1.3592,220.71,220.62,13.55871673]
[1731763031454,1.3592,220.71,220.63,23.776884]
[1731763031659,1.3591,220.73,220.63,23.776884]
[1731763032879,1.3591,220.73,220.58,18.09201673]
[1731763032880,0.2,220.71,220.58,18.09201673]
[1731763033072,0.1,220.69,220.56,13.58]
[1731763033233,1.10668264,220.69,220.55,29.42751673]
[1731763033526,1.3594,220.68,220.56,0.09367462]
[1731763033745,0.1,220.66,220.55,15.8688]
[1731763033947,0.1,220.66,220.55,29.4488]
[1731763034157,0.1,220.66,220.56,0.09367462]
[1731763034755,1.3596,220.65,220.56,0.09367462]
[1731763035066,1.3596,220.65,220.56,23.87055862]
[1731763035450,1.3596,220.65,220.55,11.3348]
[1731763035667,1.00668264,220.64,220.52,13.55871673]
[1731763035850,1.10668264,220.64,220.52,13.55871673]
[1731763036247,0.1,220.64,220.52,13.55871673]
[1731763036555,1.3598,220.61,220.5,15.96617462]
[1731763036750,1.3598,220.61,220.5,11.43107462]
[1731763037570,0.90668264,220.6,220.5,11.43107462]
[1731763037868,1.00668264,220.6,220.5,0.09367462]
[1731763038370,0.1,220.56,220.5,0.09367462]
[1731763038670,1.3603,220.53,220.5,0.09367462]
[1731763040947,0.90668264,220.52,220.5,0.09367462]
[1731763041159,1.3603,220.53,220.5,0.09367462]
[1731763041843,2.26698264,220.53,220.5,0.09367462]
[1731763042565,2.36698264,220.53,220.5,0.09367462]
[1731763046150,2.36698264,220.53,220.5,23.87055862]
[1731763047568,1.3603,220.53,220.5,23.87055862]
[1731763048277,6.7993,220.61,220.5,23.87055862]
[1731763048278,1.3602,220.55,220.5,23.87055862]
[1731763048462,1.3599,220.59,220.52,23.776884]
[1731763048964,0.1,220.57,220.5,23.87055862]
[1731763049350,1.3601,220.56,220.5,23.87055862]
[1731763049668,0.90668264,220.55,220.5,23.87055862]
[1731763050674,1.3602,220.54,220.5,23.87055862]
[1731763051662,1.3601,220.56,220.5,23.87055862]
[1731763052373,0.90668264,220.55,220.5,23.87055862]
[1731763052765,1.3601,220.56,220.5,23.87055862]
[1731763052951,0.90668264,220.55,220.5,23.87055862]
[1731763053364,1.3599,220.6,220.5,23.87055862]
[1731763053564,0.90668264,220.59,220.5,23.87055862]
[1731763054575,1.36,220.58,220.5,23.87055862]
[1731763055772,0.90668264,220.57,220.5,23.87055862]
[1731763056367,0.1,220.56,220.5,0.09367462]